bitfinex-derivatives/quotes_ETHF0:USTF0_20240817
["timestamp","ask_amount","ask_price","bid_price","bid_amount"]
[1723913889108,10.97898,2622.4,2622.3,0.00472848]
[1723913891003,12.40877,2622.4,2622.3,0.00472848]
[1723913891208,2.8598,2622.2,2622.1,0.00388408]
[1723913891406,3.9578,2622.2,2622.1,0.00388408]
[1723913892308,3.9578,2622.2,2622.1,0.00816497]
[1723913893318,9.2013,2622.2,2622.1,0.00816497]
[1723913894016,1.43017,2621.7,2621.6,0.6978]
[1723913894216,2.52817,2621.7,2621.6,0.6978]
[1723913895118,2.53115359,2621.7,2621.6,0.7026735]
[1723913895613,0.00298359,2621.7,2621.6,5.9472935]
[1723913895806,1.10098359,2621.7,2621.6,5.9472935]
[1723913896117,1.10098359,2621.7,2621.6,0.7026735]
[1723913896315,1.10098359,2621.7,2621.6,2.1328935]
[1723913896706,1.10098359,2621.7,2621.6,5.9472935]
[1723913897116,0.00298359,2621.7,2621.6,5.9472935]
[1723913897504,1.10098359,2621.7,2621.6,5.9472935]
[1723913899216,2.53115359,2621.7,2621.6,5.9472935]
[1723913899418,2.53115359,2621.7,2621.6,0.7026735]
[1723913904614,3.96132359,2621.7,2621.6,0.3564735]
[1723913904819,3.96132359,2621.7,2621.6,0.0048735]
[1723913905520,1.43033,2621.4,2621.3,0.3516]
[1723913905708,2.86066,2621.4,2621.3,0.3516]
[1723913906309,1.43055,2621.0,2620.9,3.5589]
[1723913906515,2.52855,2621.0,2620.9,3.56351111]
[1723913906714,2.52855,2621.0,2620.9,8.80932111]
[1723913906916,1.43041,2621.3,2620.9,7.37871111]
[1723913907114,1.098,2621.0,2620.9,4.99412111]
[1723913907613,1.098,2621.0,2620.9,8.80932111]
[1723913911623,1.098,2621.0,2620.9,15.23993111]
[1723913912619,1.098,2621.0,2620.9,10.23993111]
[1723913912815,1.098,2621.0,2620.9,15.23993111]
[1723913913618,1.098,2621.0,2620.9,10.23993111]
[1723913913821,1.098,2621.0,2620.9,8.80932111]
[1723913915119,1.098,2621.0,2620.9,5.60152111]
[1723913915513,1.098,2621.0,2620.9,10.60152111]
[1723913915712,1.098,2621.0,2620.9,5.60152111]
[1723913916116,1.43047,2621.2,2621.1,1.4305]
[1723913916418,2.52847,2621.2,2621.1,1.4305]
[1723913918928,1.43051,2621.1,2621.0,1.43053]
[1723913919121,2.52851,2621.1,2621.0,1.43053]
[1723913919323,1.098,2621.1,2621.0,1.43053]
[1723913919524,2.5285,2621.1,2621.0,1.43053]
[1723913920020,1.098,2621.1,2621.0,1.43053]
[1723913921325,1.79036,2621.4,2621.1,1.43049]
[1723913921527,1.43045,2621.2,2621.1,1.43046]
[1723913921721,1.098,2621.2,2621.1,1.43046]
[1723913922324,2.52844,2621.2,2621.1,1.43046]
[1723913922817,1.098,2621.2,2621.1,1.43046]
[1723913923425,1.43051,2621.1,2621.0,1.43052]
[1723913923629,2.88591,2621.1,2621.0,1.43052]
[1723913924028,2.88591,2621.1,2620.9,0.00461111]
[1723913924029,1.43055,2621.0,2620.9,0.00461111]
[1723913924227,1.43055,2621.0,2620.9,1.43522111]
[1723913926518,1.4554,2621.1,2620.9,0.00461111]
[1723913926719,2.88593,2621.1,2621.0,1.43055]
[1723913926927,1.4554,2621.1,2621.0,1.43055]
[1723913927230,1.098,2621.1,2621.0,1.43055]
[1723913929033,2.5285,2621.1,2621.0,1.43055]
[1723913931237,2.5285,2621.1,2620.9,0.00461111]
[1723913931238,1.43055,2621.0,2620.9,0.00461111]
[1723913931440,1.80525,2621.0,2620.9,0.00461111]
[1723913931737,1.80525,2621.0,2620.9,3.81981111]
[1723913931940,4.63816,2621.4,2621.0,1.43051]
[1723913932133,1.43045,2621.2,2621.1,1.43047]
[1723913932330,2.52845,2621.2,2621.1,1.43047]
[1723913932736,1.098,2621.2,2621.1,1.43047]
[1723913933634,3.5608,2621.4,2621.3,1.43039]
[1723913933831,1.43317359,2621.7,2621.6,1.43022]
[1723913934035,2.53117359,2621.7,2621.6,1.43022]
[1723913934344,1.10098359,2621.7,2621.6,5.24462]
[1723913934935,1.10098359,2621.7,2621.6,1.43022]
[1723913935542,2.53115359,2621.7,2621.6,1.43022]
[1723913935843,1.43022,2621.6,2621.5,1.43026]
[1723913936038,1.098,2621.6,2621.5,1.43026]
[1723913936340,2.52822,2621.6,2621.5,5.24466]
[1723913936644,1.098,2621.6,2621.5,5.24466]
[1723913937738,2.52822,2621.6,2621.5,5.24466]
[1723913938041,2.52822,2621.6,2621.5,3.8144]
[1723913938847,2.88186,2621.6,2621.4,1.43032]
[1723913939035,0.3458,2621.5,2621.4,1.43032]
[1723913939442,0.3458,2621.5,2621.4,2.42024306]
[1723913940132,1.098,2621.6,2621.5,1.43028]
[1723913940747,1.098,2621.6,2621.5,2.42020306]
[1723913941440,2.52823,2621.6,2621.5,1.43028]
[1723913942844,1.098,2621.6,2621.5,1.43028]
[1723913943648,2.52823,2621.6,2621.5,1.43028]
[1723913943847,1.098,2621.6,2621.5,1.43028]
[1723913944459,2.52823,2621.6,2621.5,1.43028]
[1723913944961,1.098,2621.6,2621.5,1.43028]
[1723913947150,2.52823,2621.6,2621.5,1.43028]
[1723913951349,1.098,2621.6,2621.5,1.43028]
[1723913952652,2.52823,2621.6,2621.5,1.43028]
[1723913954458,1.43029,2621.5,2621.4,1.43028]
[1723913954661,1.43033,2621.4,2621.3,2.42027306]
[1723913954857,1.79073,2621.4,2621.3,2.42027306]
[1723913955156,1.79073,2621.4,2621.3,6.23547306]
[1723913955555,0.3604,2621.4,2621.3,6.23547306]
[1723913956151,1.79073,2621.4,2621.3,3.02059188]
[1723913956356,1.79073,2621.4,2621.3,2.42163189]
[1723913957463,1.43039,2621.3,2621.2,3.11668189]
[1723913957661,2.52839,2621.3,2621.2,3.11668189]
[1723913957862,2.52839,2621.3,2621.2,1.4304]
[1723913958461,2.8611,2621.0,2620.9,0.00461111]
[1723913958661,7.1669,2621.0,2620.9,0.00461111]
[1723913960268,1.43055,2621.0,2620.9,0.00461111]
[1723913960455,2.52855,2621.0,2620.9,0.00461111]
[1723913961865,7.1669,2621.0,2620.9,0.00461111]
[1723913962164,2.8611,2621.0,2620.9,0.00461111]
[1723913962359,2.52855,2621.0,2620.9,0.00461111]
[1723913962559,6.08225,2621.0,2620.9,0.00461111]
[1723913962758,6.46015,2621.0,2620.9,0.00461111]
[1723913964566,6.08225,2621.0,2620.9,0.00461111]
[1723913964762,6.08225,2621.0,2620.9,0.37691111]
[1723913965959,2.87445,2621.0,2620.9,0.37691111]
[1723913970965,4.305,2621.0,2620.9,0.00461111]
[1723913972061,7.5128,2621.0,2620.9,0.00461111]
[1723913973572,4.305,2621.0,2620.9,0.00461111]
[1723913973871,7.5128,2621.0,2620.9,0.00461111]
[1723913978067,6.08225,2621.0,2620.9,0.00461111]
[1723913980463,7.5128,2621.0,2620.9,0.00461111]
[1723913983271,4.305,2621.0,2620.9,0.00461111]
[1723913983475,7.5128,2621.0,2620.9,0.00461111]
[1723913988379,4.305,2621.0,2620.9,0.00461111]
[1723913988580,7.5128,2621.0,2620.9,0.00461111]
[1723913988784,4.305,2621.0,2620.9,0.00461111]
[1723913989281,7.5128,2621.0,2620.9,0.00461111]
[1723913994382,6.08225,2621.0,2620.9,0.00461111]
[1723913996483,7.5128,2621.0,2620.9,0.00461111]
[1723913998680,4.305,2621.0,2620.9,0.00461111]
[1723914002090,3.2078,2621.1,2620.9,0.00461111]
[1723914002286,1.43039,2621.3,2621.2,1.43042]
[1723914002493,2.52839,2621.3,2620.9,1.362593]
[1723914002692,2.52849,2621.1,2621.0,0.99128189]
[1723914002893,1.43055,2621.0,2620.9,0.37131111]
[1723914003086,1.43055,2621.0,2620.9,5.177793]
[1723914003281,1.43055,2621.0,2620.9,4.78764425]
[1723914003485,1.43055,2621.0,2620.9,5.77892614]
[1723914003691,1.43055,2621.0,2620.9,6.69570884]
[1723914003882,1.43055,2621.0,2620.9,7.5251757]
[1723914004088,1.43055,2621.0,2620.9,8.12641994]
[1723914004389,1.43055,2621.0,2620.9,2.88056659]
[1723914004593,1.43055,2621.0,2620.9,3.8749499]
[1723914005189,1.43055,2621.0,2620.9,1.96693866]
[1723914006392,1.098,2621.1,2620.9,1.96693866]
[1723914006393,1.098,2621.1,2621.0,1.43055]
[1723914006580,1.098,2621.1,2621.0,2.4247255]
[1723914006783,1.098,2621.1,2621.0,6.2399255]
[1723914007495,2.52849,2621.1,2621.0,4.8093755]
[1723914008497,2.52849,2621.1,2621.0,6.2399255]
[1723914008685,2.52849,2621.1,2621.0,0.9941755]
[1723914009086,2.52849,2621.1,2621.0,4.8093755]
[1723914009285,2.52849,2621.1,2621.0,6.2399255]
[1723914009693,3.5714,2621.2,2621.0,6.2399255]
[1723914009694,3.2078,2621.2,2621.1,1.43049]
[1723914009890,4.3058,2621.2,2621.1,5.24569]
[1723914010799,1.098,2621.2,2621.1,5.24569]
[1723914010989,4.088,2621.5,2621.4,1.43033]
[1723914011190,5.186,2621.5,2621.4,1.43033]
[1723914011499,1.098,2621.5,2621.4,5.24473]
[1723914011792,2.52828,2621.5,2621.3,1.43035]
[1723914011999,4.63806,2621.6,2621.4,1.77633]
[1723914012191,4.63806,2621.6,2621.5,0.3632]
[1723914012388,4.63806,2621.6,2621.5,4.1776]
[1723914012593,1.43028,2621.5,2621.4,0.346]
[1723914012788,1.43028,2621.5,2621.0,9.45162699]
[1723914012789,1.43041,2621.3,2621.1,0.7278]
[1723914012995,2.52844,2621.2,2621.1,0.3783]
[1723914013200,2.90114,2621.2,2621.1,0.3783]
[1723914015295,2.90114,2621.2,2621.1,1.80879]
[1723914015893,2.90114,2621.2,2621.1,0.3783]
[1723914016403,2.52844,2621.2,2621.1,0.3783]
[1723914016696,2.52844,2621.2,2621.1,1.80879]
[1723914017292,1.098,2621.2,2621.1,5.62399]
[1723914017497,4.63805,2621.6,2621.1,5.62399]
[1723914017498,3.5573,2621.6,2621.1,9.1935]
[1723914017696,1.4303,2621.5,2621.4,1.43031]
[1723914018103,1.43031,2621.5,2621.2,0.3636]
[1723914018297,1.43028,2621.5,2621.2,0.3636]
[1723914019402,1.098,2621.3,2621.2,1.79404]
[1723914019908,1.098,2621.3,2621.2,6.60345382]
[1723914020298,1.098,2621.3,2621.2,5.60924]
[1723914022301,3.5573,2621.6,2621.5,1.43028]
[1723914022599,1.098,2622.2,2621.7,1.43017]
[1723914022798,1.098,2622.3,2622.2,1.42989]
[1723914023009,0.0057157,2622.4,2622.3,2.85968]
[1723914023197,7.2958,2623.0,2622.9,1.42951]
[1723914023198,3.2078,2623.0,2622.9,1.42951]
[1723914023397,4.3058,2623.0,2622.9,1.42951]
[1723914023699,4.30873527,2623.0,2622.9,5.24571192]
[1723914024007,0.00293527,2623.0,2622.9,10.24571192]
[1723914024207,0.00293527,2623.0,2622.9,5.24571192]
[1723914024406,1.43239527,2623.0,2622.9,0.00340192]
[1723914024798,0.00293527,2623.0,2622.9,5.24571192]
[1723914025000,0.00293527,2623.0,2622.9,10.24571192]
[1723914025509,0.00293527,2623.0,2622.9,18.22929675]
[1723914025703,0.0057157,2623.2,2623.1,1.4294]
[1723914026213,0.0057157,2623.2,2623.1,5.2414]
[1723914026601,0.00974844,2623.2,2623.1,5.2414]
[1723914028610,0.00974844,2623.2,2623.0,1.42943]
[1723914028803,0.00974844,2623.2,2623.1,1.42941]
[1723914029010,0.00974844,2623.2,2622.9,0.00340192]
[1723914029011,1.43912844,2623.2,2623.0,1.42942]
[1723914029508,0.00974844,2623.2,2623.1,1.4294]
[1723914029712,1.43909844,2623.2,2622.9,0.00340192]
[1723914029917,0.00974844,2623.2,2623.1,1.4294]
[1723914030413,0.00974844,2623.2,2623.1,5.2414]
[1723914030803,0.00974844,2623.2,2623.1,10.2414]
[1723914031004,0.00974844,2623.2,2623.1,5.2414]
[1723914036617,0.00974844,2623.2,2623.1,3.812]
[1723914036813,1.43913844,2623.2,2623.0,0.3565]
[1723914037017,1.42941,2623.1,2623.0,0.3565]
[1723914037219,1.42942,2623.1,2622.9,0.00340192]
[1723914037527,0.3416,2623.0,2622.9,0.00340192]
[1723914037823,1.77106,2623.0,2622.9,0.00340192]
[1723914038222,6.7894,2623.0,2622.7,0.0057157]
[1723914038522,6.7894,2623.0,2622.0,1.42997]
[1723914038523,1.42987,2622.3,2622.0,1.42997]
[1723914039029,1.42987,2622.3,2622.1,1.42995]
[1723914039329,3.2078,2622.4,2622.3,1.42984]
[1723914040032,3.2078,2622.4,2622.1,1.43331809]
[1723914040221,1.42985,2622.3,2622.1,1.43331809]
[1723914040421,1.4299,2622.2,2622.1,0.00339809]
[1723914041130,1.77548,2622.3,2622.1,1.43334809]
[1723914041327,1.77545,2622.3,2622.1,1.43334809]
[1723914041527,4.63761,2622.4,2622.2,1.4299]
[1723914041732,1.42984,2622.3,2622.1,1.43330809]
[1723914041931,1.42984,2622.3,2622.1,0.00339809]
[1723914042329,1.4299,2622.2,2622.1,0.00339809]
[1723914043328,3.2078,2622.4,2622.1,1.43333809]
[1723914043329,1.42987,2622.3,2622.1,1.43333809]
[1723914043534,3.2078,2622.4,2622.2,1.4299]
[1723914043832,3.2078,2622.4,2622.1,1.43332809]
[1723914044033,1.42985,2622.3,2622.1,1.43332809]
[1723914044426,4.63762,2622.4,2622.2,1.42988]
[1723914044625,4.63762,2622.4,2622.1,1.43331809]
[1723914044822,1.4299,2622.2,2622.1,0.00339809]
[1723914045227,1.4299,2622.2,2621.4,3.2078]
[1723914045228,1.42995,2622.1,2621.4,3.2078]
[1723914045429,1.43008,2621.9,2621.4,3.2078]
[1723914045626,1.43008,2621.9,2621.6,1.43019]
[1723914045827,1.43013,2621.8,2621.6,1.43019]
[1723914046021,1.43021,2621.7,2621.5,1.43026]
[1723914046335,0.3442,2621.8,2621.5,0.00432813]
[1723914046532,1.43022,2621.6,2621.5,0.00432813]
[1723914046936,6.4494,2621.6,2620.8,0.3505]
[1723914047131,6.4494,2621.6,2621.0,1.43052]
[1723914047132,3.2078,2621.5,2621.0,1.43052]
[1723914047336,1.43036,2621.4,2621.1,1.4305]
[1723914047537,4.63812,2621.5,2621.2,1.43044]
[1723914047736,1.43032,2621.5,2621.2,1.43044]
[1723914047932,1.43032,2621.5,2621.2,1.43358768]
[1723914048132,1.43036,2621.4,2621.2,0.00314768]
[1723914048534,1.43031,2621.5,2621.2,1.43358768]
[1723914049131,7.64,2621.8,2621.2,0.00314768]
[1723914049836,1.43027,2621.6,2621.3,1.43038]
[1723914050142,1.43021,2621.7,2621.4,1.43033]
[1723914050337,3.552,2621.8,2621.2,0.00314768]
[1723914050540,1.43028,2621.5,2621.2,1.43355768]
[1723914050841,1.43037,2621.4,2621.2,0.00314768]
[1723914051133,1.43017,2621.7,2621.2,0.00314768]
[1723914051433,1.43039,2621.3,2621.2,0.00314768]
[1723914051633,1.43328773,2621.3,2621.2,0.00314768]
[1723914052237,0.00289773,2621.3,2621.2,1.43358768]
[1723914052433,0.00289773,2621.3,2621.2,5.24878768]
[1723914054934,0.00289773,2621.3,2621.2,0.00314768]
[1723914056330,0.00289773,2621.3,2621.2,1.43358768]
[1723914056735,0.00289773,2621.3,2621.2,5.24878768]
[1723914057237,0.00289773,2621.3,2621.2,1.43358768]
[1723914057555,0.00289773,2621.3,2621.2,5.24878768]
[1723914058249,0.0057157,2621.9,2621.8,1.43011]
[1723914058743,0.0057157,2621.9,2621.8,5.24451]
[1723914059147,0.0057157,2621.9,2621.8,10.24451]
[1723914059335,0.01047776,2621.9,2621.8,10.24451]
[1723914059531,0.01047776,2621.9,2621.8,11.67463]
[1723914059744,4.088,2622.4,2622.3,1.42984]
[1723914059939,3.2078,2622.5,2622.3,1.42984]
[1723914060137,4.63754,2622.5,2622.3,1.42984]
[1723914060342,4.63754,2622.5,2622.4,1.42979]
[1723914060343,3.2078,2622.5,2622.4,1.42979]
[1723914060641,0.00355766,2622.5,2622.4,3.8136]
[1723914060832,0.00355766,2622.5,2622.4,5.24339]
[1723914061548,0.00355766,2622.5,2622.4,11.67318]
[1723914061846,0.0057157,2622.7,2622.5,1.4297]
[1723914062037,1.42976,2622.5,2622.3,1.42982]
[1723914062237,0.0057157,2622.7,2622.3,1.42982]
[1723914062238,1.78512,2622.6,2622.3,1.42982]
[1723914062444,1.42978,2622.5,2622.2,0.0057157]
[1723914062744,1.42984,2622.3,2622.2,0.0057157]
[1723914062934,1.42981,2622.4,2622.2,0.0057157]
[1723914063135,1.42984,2622.3,2622.2,0.0057157]
[1723914063338,0.0029163,2622.5,2622.2,0.0057157]
[1723914063536,2.85968,2622.3,2622.2,0.0057157]
[1723914063936,6.67328,2622.3,2622.2,0.0057157]
[1723914065242,5.24344,2622.3,2622.2,0.0057157]
[1723914065643,1.42984,2622.3,2622.2,0.0057157]
[1723914067644,1.42984,2622.4,2622.2,1.4355957]
[1723914067948,2.6379163,2622.5,2622.2,0.0057157]
[1723914068250,1.42984,2622.3,2622.2,0.0057157]
[1723914068647,2.85968,2622.3,2622.2,0.0057157]
[1723914070151,6.67328,2622.3,2622.2,0.0057157]
[1723914070843,10.24344,2622.3,2621.5,4.63803]
[1723914071040,1.43001,2622.0,2621.7,1.43014]
[1723914071244,1.43008,2621.9,2621.7,1.43014]
[1723914071447,1.43014,2621.8,2621.6,1.43021]
[1723914072347,1.80284,2622.0,2621.5,3.2078]
[1723914072654,1.4301,2621.9,2621.5,3.2078]
[1723914072949,1.43013,2621.8,2621.6,1.4302]
[1723914073147,1.43028,2621.5,2621.4,0.3629]
[1723914073352,1.43028,2621.5,2621.3,1.43037]
[1723914073353,1.43033,2621.4,2621.3,1.43038]
[1723914073544,3.2078,2621.9,2621.2,0.00314768]
[1723914073545,1.43025,2621.6,2621.4,1.43031]
[1723914073750,1.43028,2621.5,2621.3,1.43036]
[1723914073947,1.43011,2621.8,2621.3,1.43036]
[1723914074345,3.2078,2621.9,2621.2,0.00314768]
[1723914074346,1.43021,2621.7,2621.5,1.43027]
[1723914074741,1.43022,2621.6,2621.4,1.4303]
[1723914074948,1.43028,2621.5,2621.3,1.43036]
[1723914075150,1.43026,2621.6,2621.4,1.43033]
[1723914075349,1.43034,2621.4,2621.2,1.43354768]
[1723914076252,1.43039,2621.3,2621.2,0.00314768]
[1723914078555,1.43037,2621.4,2621.2,1.43358768]
[1723914078756,4.088,2621.8,2621.2,0.00314768]
[1723914078951,4.088,2621.8,2621.2,3.81834768]
[1723914079152,4.088,2621.8,2621.7,1.43017]
[1723914079659,0.3625,2621.9,2621.8,1.43012]
[1723914080164,1.79256,2621.9,2621.7,1.43013]
[1723914080348,1.43017,2621.7,2621.6,0.3595]
[1723914080662,1.43017,2621.7,2621.6,1.43022]
[1723914080958,1.43021,2621.7,2621.5,1.43026]
[1723914081552,1.43022,2621.6,2621.5,1.43026]
[1723914081756,1.43028,2621.5,2621.4,0.3679]
[1723914081957,1.43033,2621.4,2621.2,1.43357768]
[1723914082258,1.43033,2621.4,2621.3,1.43039]
[1723914082461,1.43032,2621.5,2621.3,1.43039]
[1723914083048,1.43033,2621.4,2621.3,1.43039]
[1723914083258,1.43033,2621.4,2621.2,1.43355768]
[1723914083559,1.43039,2621.3,2621.2,0.00314768]
[1723914086059,1.43036,2621.4,2621.2,0.00314768]
[1723914086255,1.43036,2621.4,2621.2,1.43356768]
[1723914086859,1.43039,2621.3,2621.2,0.00314768]
[1723914089177,1.43039,2621.3,2621.2,1.43358768]
[1723914089381,1.43037,2621.4,2621.2,1.43358768]
[1723914089681,1.80038,2621.5,2621.3,1.43035]
[1723914090290,1.43033,2621.4,2621.3,1.43035]
[1723914090980,1.43033,2621.4,2621.2,1.43355768]
[1723914091281,1.43039,2621.3,2621.2,0.00314768]
[1723914093372,3.5779,2621.5,2621.2,0.00314768]
[1723914093681,1.8004,2621.5,2621.3,1.43035]
[1723914093978,1.8004,2621.5,2621.4,0.3772]
[1723914096874,1.43039,2621.3,2621.2,1.43355768]
[1723914097379,1.43037,2621.4,2621.3,1.43039]
[1723914098385,1.43039,2621.3,2621.2,1.43354768]
[1723914098575,1.43036,2621.4,2621.3,1.43039]
[1723914098884,1.43036,2621.4,2621.2,1.43354768]
[1723914099479,1.43036,2621.4,2621.3,1.43037]
[1723914100380,1.43036,2621.4,2621.2,1.43354768]
[1723914101777,1.43039,2621.3,2621.2,1.43354768]
[1723914102481,1.43037,2621.4,2621.3,1.43039]
[1723914102790,0.3701,2621.5,2621.2,1.43355768]
[1723914102976,1.43038,2621.4,2621.2,1.43355768]
[1723914103693,1.43039,2621.3,2621.2,1.43355768]
[1723914104789,1.8004,2621.5,2621.3,1.43035]
[1723914104982,7.2958,2621.8,2621.4,0.7146]
[1723914105188,1.43021,2621.7,2621.5,1.43025]
[1723914105386,1.43021,2621.7,2621.6,1.43022]
[1723914105778,4.088,2621.8,2621.7,1.43017]
[1723914106492,1.43006,2621.9,2621.7,1.43017]
[1723914107290,1.43006,2621.9,2621.8,1.43011]
[1723914107791,1.43006,2621.9,2621.7,1.43013]
[1723914108186,1.43006,2621.9,2621.8,0.3441]
[1723914112990,1.42998,2622.1,2621.9,1.43004]
[1723914113191,5.8428,2622.2,2621.8,0.3441]
[1723914113392,3.2078,2622.2,2622.1,1.42995]
[1723914113687,3.2078,2622.2,2622.1,3.33702162]
[1723914113888,3.2078,2622.2,2622.1,7.15062162]
[1723914114097,0.0029163,2622.5,2622.4,1.42979]
[1723914114488,0.0029163,2622.5,2622.4,7.15008811]
[1723914114689,0.0029163,2622.5,2622.4,7.51048811]
[1723914115387,0.0029163,2622.5,2622.4,6.59238445]
[1723914115594,0.0029163,2622.5,2622.4,5.24339]
[1723914116201,0.0029163,2622.5,2622.4,4.1917]
[1723914116202,1.4326463,2622.5,2622.4,4.1917]
[1723914116395,1.4326463,2622.5,2622.4,0.3781]
[1723914116699,0.0029163,2622.5,2622.4,1.80789]
[1723914116889,1.4326463,2622.5,2622.4,1.80789]
[1723914117095,1.4326463,2622.5,2622.4,0.3781]
[1723914117595,1.4326463,2622.5,2622.4,1.80789]
[1723914118093,1.42979,2622.4,2622.3,1.4298]
[1723914118390,1.4299,2622.3,2622.0,0.712]
[1723914118595,0.0029163,2622.5,2622.1,3.8136]
[1723914118793,1.4326463,2622.5,2622.4,1.42979]
[1723914119092,1.4326963,2622.5,2622.3,1.4298]
[1723914119603,1.4326963,2622.5,2622.3,1.42979]
[1723914120090,1.4326963,2622.5,2622.4,0.3484]
[1723914120684,1.42988,2622.3,2622.1,1.42992]
[1723914121099,1.42988,2622.3,2622.2,1.4299]
[1723914121491,3.8136,2622.3,2622.0,0.3636]
[1723914121684,1.42995,2622.1,2622.0,0.3636]
[1723914122089,0.3781,2622.2,2621.7,0.3739]
[1723914122382,1.43001,2622.0,2621.9,1.43004]
[1723914122797,1.42999,2622.1,2621.9,1.43004]
[1723914123382,1.42999,2622.1,2621.7,0.7301]
[1723914123586,1.42999,2622.1,2621.9,1.43002]
[1723914123789,1.43001,2622.0,2621.8,1.43008]
[1723914123994,1.42998,2622.1,2622.0,1.43001]
[1723914124399,1.42995,2622.1,2621.9,1.43004]
[1723914125095,1.43001,2622.0,2621.7,0.7301]
[1723914125497,3.5859,2622.2,2621.8,1.43011]
[1723914125891,1.43,2622.1,2621.9,1.43006]
[1723914126795,3.2078,2622.1,2621.7,0.7301]
[1723914126998,3.2078,2622.1,2622.0,1.43001]
[1723914130000,1.43006,2622.0,2621.7,0.7301]
[1723914130203,3.2078,2622.1,2621.7,0.7301]
[1723914130595,1.43008,2621.9,2621.7,2.16022]
[1723914130999,1.78201,2621.8,2621.7,2.16022]
[1723914131197,1.78201,2621.8,2621.7,0.7301]
[1723914131897,0.3519,2621.8,2621.7,2.16027]
[1723914132701,1.78206,2621.8,2621.4,4.19639445]
[1723914132904,1.78206,2621.8,2621.5,0.7059]
[1723914133110,0.3519,2621.8,2621.6,1.43019]
[1723914133295,0.3519,2621.8,2621.7,1.43017]
[1723914133602,0.3519,2621.8,2621.6,1.43019]
[1723914133603,1.78201,2621.8,2621.6,1.43019]
[1723914133803,1.78201,2621.8,2621.7,1.43017]
[1723914134300,1.78201,2621.8,2621.6,1.43019]
[1723914134508,0.3519,2621.8,2621.7,1.43017]
[1723914134708,1.43001,2622.0,2621.9,1.43003]
[1723914134896,3.2078,2622.1,2621.5,0.7059]
[1723914135091,0.3497,2621.9,2621.5,2.13616]
[1723914135798,0.3497,2621.9,2621.8,1.43011]
[1723914136506,1.42995,2622.1,2622.0,1.42996]
[1723914136696,1.42995,2622.1,2621.9,1.43003]
[1723914137006,1.43001,2622.0,2621.9,1.43003]
[1723914138006,1.42999,2622.1,2621.9,1.43003]
[1723914138304,1.42999,2622.1,2622.0,1.43001]
[1723914138603,1.42988,2622.3,2621.6,1.43022]
[1723914138604,1.42987,2622.3,2622.2,1.42988]
[1723914138793,1.4299,2622.2,2622.1,1.42992]
[1723914138993,1.43002,2622.0,2621.9,1.43001]
[1723914139506,4.6377,2622.2,2621.5,3.12474445]
[1723914139507,1.42997,2622.1,2622.0,1.42997]
[1723914141397,3.2078,2622.2,2622.1,1.42995]
[1723914142500,4.6377,2622.2,2622.1,1.42995]
[1723914143507,1.42995,2622.1,2622.0,1.78517]
[1723914143708,1.42995,2622.1,2622.0,1.42997]
[1723914144307,3.2078,2622.2,2621.9,0.349]
[1723914144510,3.2078,2622.2,2621.7,0.3552]
[1723914144511,1.42997,2622.1,2622.0,1.42997]
[1723914145805,1.43003,2622.0,2621.9,1.43003]
[1723914146304,1.42998,2622.1,2622.0,1.42998]
[1723914147106,1.43008,2621.9,2621.8,1.43007]
[1723914147308,1.43003,2622.0,2621.9,1.43003]
[1723914150014,1.43008,2621.9,2621.8,1.43009]
[1723914150213,1.43006,2621.9,2621.8,1.43009]
[1723914150417,1.43011,2621.8,2621.7,0.7042]
[1723914150914,1.80631,2621.8,2621.7,0.7042]
[1723914151708,1.80631,2621.8,2621.7,2.13437]
[1723914152318,1.80631,2621.8,2621.7,0.7042]
[1723914152710,1.80631,2621.8,2621.7,2.13437]
[1723914152910,1.80631,2621.8,2621.7,0.7042]
[1723914153915,2.86034,2621.7,2621.6,0.98859445]
[1723914154110,1.4303,2621.5,2621.3,3.10795445]
[1723914154302,1.43033,2621.4,2621.3,0.689]
[1723914154506,1.43033,2621.4,2621.3,2.11939]
[1723914154709,1.4303,2621.5,2621.3,2.11939]
[1723914155319,1.43033,2621.4,2621.3,0.689]
[1723914155520,1.79633,2621.4,2621.3,0.689]
[1723914158516,0.366,2621.4,2621.3,2.11939]
[1723914158826,1.79633,2621.4,2621.3,0.689]
[1723914160017,1.79633,2621.4,2621.2,0.35154768]
[1723914160018,1.43039,2621.3,2621.2,0.00314768]
[1723914164326,0.366,2621.4,2621.2,0.00314768]
[1723914164518,4.63809,2621.5,2621.3,1.43035]
[1723914164720,3.2078,2621.5,2621.4,1.77343]
[1723914164918,1.43028,2621.5,2621.4,0.3431]
[1723914166428,1.43039,2621.3,2621.2,0.00314768]
[1723914167115,4.63819,2621.3,2621.2,0.00314768]
[1723914167529,5.00939,2621.3,2621.2,0.00314768]
[1723914168333,5.00939,2621.3,2621.2,1.43358768]
[1723914169028,5.00939,2621.3,2621.2,0.00314768]
[1723914169228,1.80159,2621.3,2621.2,0.00314768]
[1723914169531,1.43022,2621.6,2621.4,1.43032]
[1723914169730,1.43022,2621.6,2621.5,0.7228]
[1723914170333,1.43022,2621.6,2621.5,2.15308]
[1723914170526,3.5783,2621.8,2621.7,1.43017]
[1723914170527,0.3705,2621.8,2621.7,1.43017]
[1723914170931,1.43006,2621.9,2621.7,1.43013]
[1723914171234,1.43006,2621.9,2621.8,1.43011]
[1723914171424,1.80054,2622.0,2621.6,0.3467]
[1723914171732,0.3705,2622.0,2621.8,1.43008]
[1723914171930,1.80051,2622.0,2621.9,0.3494]
[1723914172235,1.43001,2622.0,2621.9,1.77946]
[1723914172432,2.9844,2622.3,2621.9,0.3494]
[1723914172640,1.42996,2622.1,2622.0,1.78199]
[1723914172822,1.42996,2622.1,2622.0,0.352]
[1723914173137,1.42996,2622.1,2622.0,1.78201]
[1723914174930,1.42992,2622.2,2622.1,1.42994]
[1723914175122,1.42988,2622.3,2622.1,1.42994]
[1723914175328,1.4299,2622.2,2622.1,1.42994]